Workbook

Sheet MODELO
A1: Tirador | B1: Nombre | C1: 1 | D1: 2 | E1: 3 | F1: 4 | G1: 5 | H1: 6 | I1: 7 | J1: 8 | K1: 9 | L1: 10 | M1: 11 | N1: 12 | O1: 13 | P1: 14 | Q1: 15 | R1: 16 | S1: 17 | T1: 18 | U1: 19 | V1: 20 | W1: TOTAL | X1: Clasif | Y1: Desempates
A2: 1 | B2: Andres Martinez | C2: 9.5 | D2: 8.4 | E2: 10.2 | F2: 9.4 | G2: 9.8 | H2: 7.9 | I2: 9.4 | J2: 9.5 | K2: 10 | L2: 9.3 | M2: 10.3 | N2: 10 | O2: 9.1 | P2: 8.9 | Q2: 9 | R2: 9.4 | S2: 10.1 | T2: 10.2 | U2: 10.4 | V2: 9.7 | W2: =SUM(C2:V2) -> 190.5 | X2: 1
A3: 5 | B3: J.Antonio Alvarez | C3: 9.7 | D3: 8.4 | E3: 9.1 | F3: 10.4 | G3: 8.4 | H3: 7.9 | I3: 9.6 | J3: 9.7 | K3: 9.7 | L3: 9.6 | M3: 10.2 | N3: 10.4 | O3: 9.1 | P3: 10 | Q3: 8.9 | R3: 10 | S3: 10.2 | T3: 9.1 | U3: 6.7 | V3: 9.9 | W3: 187 | X3: 2 | AA3: =W2-W3 -> 3.5 | AB3: =AA3 -> 3.5
A4: 2 | B4: Matín Castro M. | C4: 9.7 | D4: 8.6 | E4: 8.2 | F4: 9.6 | G4: 9.2 | H4: 9 | I4: 10.7 | J4: 10.1 | K4: 9.6 | L4: 10.7 | M4: 9.6 | N4: 10.2 | O4: 9.4 | P4: 8.1 | Q4: 9.3 | R4: 9.1 | S4: 10.4 | T4: 5.8 | W4: 167.3 | X4: 3 | AA4: =W3-W4 -> 19.7 | AB4: =AB3+AA4 -> 23.2
A5: 3 | B5: Marcos Perez P. | C5: 8.9 | D5: 10 | E5: 7.5 | F5: 10.5 | G5: 9.3 | H5: 10.7 | I5: 6.6 | J5: 9.7 | K5: 9.8 | L5: 9.2 | M5: 10.4 | N5: 9.8 | O5: 8.3 | P5: 8.1 | Q5: 9.3 | R5: 9.9 | W5: 148 | X5: 4 | AA5: 19.3 | AB5: 42.5
A6: 6 | B6: Daniel R. Gorjón | C6: 8.5 | D6: 10.2 | E6: 8.7 | F6: 8.8 | G6: 9.5 | H6: 10 | I6: 8.6 | J6: 10.5 | K6: 10 | L6: 8.7 | M6: 8.3 | N6: 9.2 | O6: 8.9 | P6: 8.1 | W6: 128 | X6: 5 | AA6: 20 | AB6: 62.5
A7: 4 | B7: Daniel Mdez | C7: 8.4 | D7: 8.2 | E7: 10.3 | F7: 9.6 | G7: 10.6 | H7: 9.7 | I7: 8.9 | J7: 8.2 | K7: 9.4 | L7: 8.5 | M7: 10 | N7: 9.1 | W7: 110.9 | X7: 6 | AA7: 17.1 | AB7: 79.6
A8: 7 | B8: Fco Javier Cuadra | C8: 9.5 | D8: 8.2 | E8: 8.4 | F8: 9.7 | G8: 9.2 | H8: 8.4 | I8: 8.7 | J8: 10.7 | K8: 8.1 | L8: 9.2 | W8: 90.1 | X8: 7 | AA8: 20.8 | AB8: 100.4
A9: 8 | B9: Sergio Gzlez Llague | C9: 9.1 | D9: 9.2 | E9: 8.6 | F9: 7.4 | G9: 9 | H9: 7.8 | I9: 8.7 | J9: 9.6 | W9: 69.4 | X9: 8 | AA9: 20.7 | AB9: 121.1
A10: SERIES | B10: =B2 -> Andres Martinez | C10: =SUM(C2:E2) -> 28.1 | F10: =SUM(F2:H2) -> 27.1 | I10: =SUM(I2:J2) -> 18.9 | K10: =SUM(K2:L2) -> 19.3 | M10: =SUM(M2:N2) -> 20.3 | O10: =SUM(O2:P2) -> 18 | Q10: =SUM(Q2:R2) -> 18.4 | S10: =SUM(S2:T2) -> 20.3 | U10: =SUM(U2:V2) -> 20.1 | W10: =SUM(C10:V10) -> 190.5 | X10: 1 | Y10: =SUM(Y2:Z2) -> 0
B11: =B3 -> J.Antonio Alvarez | C11: =SUM(C3:E3) -> 27.2 | F11: =SUM(F3:H3) -> 26.7 | I11: =SUM(I3:J3) -> 19.3 | K11: 19.3 | M11: 20.6 | O11: 19.1 | Q11: 18.9 | S11: 19.3 | U11: 16.6 | W11: 187 | X11: 2 | Y11: =SUM(Y3:Z3) -> 0
B12: Matín Castro M. | C12: 26.5 | F12: 27.8 | I12: 20.8 | K12: 20.3 | M12: 19.8 | O12: 17.5 | Q12: 18.4 | S12: 16.2 | U12: 0 | W12: 167.3 | X12: 3 | Y12: 0
B13: Marcos Perez P. | C13: 26.4 | F13: 30.5 | I13: 16.3 | K13: 19 | M13: 20.2 | O13: 16.4 | Q13: 19.2 | S13: 0 | U13: 0 | W13: 148 | X13: 4 | Y13: 0
B14: Daniel R. Gorjón | C14: 27.4 | F14: 28.3 | I14: 19.1 | K14: 18.7 | M14: 17.5 | O14: 17 | Q14: 0 | S14: 0 | U14: 0 | W14: 128 | X14: 5 | Y14: =SUM(Y6:Z6) -> 0
B15: Daniel Mdez | C15: 26.9 | F15: 29.9 | I15: 17.1 | K15: 17.9 | M15: 19.1 | O15: 0 | Q15: 0 | S15: 0 | U15: 0 | W15: 110.9 | X15: 6 | Y15: 0
B16: Fco Javier Cuadra | C16: 26.1 | F16: 27.3 | I16: 19.4 | K16: 17.3 | M16: 0 | O16: 0 | Q16: 0 | S16: 0 | U16: 0 | W16: 90.1 | X16: 7 | Y16: 0
B17: Sergio Gzlez Llague | C17: 26.9 | F17: 24.2 | I17: 18.3 | K17: 0 | M17: 0 | O17: 0 | Q17: 0 | S17: 0 | U17: 0 | W17: 69.4 | X17: 8 | Y17: 0
A18: SERIES ACUMULADO | B18: =B10 -> Andres Martinez | C18: =C10 -> 28.1 | F18: =F10+C18 -> 55.2 | I18: =F18+I10 -> 74.1 | K18: =K10+I18 -> 93.4 | M18: =M10+K18 -> 113.7 | O18: =O10+M18 -> 131.7 | Q18: =Q10+O18 -> 150.1 | S18: =S10+Q18 -> 170.4 | U18: =U10+S18 -> 190.5 | W18: =W10 -> 190.5 | X18: 1
B19: J.Antonio Alvarez | C19: 27.2 | F19: =F11+C19 -> 53.9 | I19: =F19+I11 -> 73.2 | K19: =K11+I19 -> 92.5 | M19: 113.1 | O19: =O11+M19 -> 132.2 | Q19: =Q11+O19 -> 151.1 | S19: =S11+Q19 -> 170.4 | U19: =U11+S19 -> 187 | W19: =W11 -> 187 | X19: 2
B20: Matín Castro M. | C20: 26.5 | F20: 54.3 | I20: 75.1 | K20: 95.4 | M20: 115.2 | O20: =O12+M20 -> 132.7 | Q20: =Q12+O20 -> 151.1 | S20: =S12+Q20 -> 167.3 | U20: =SUM(U12:V12) -> 0 | W20: 167.3 | X20: 3
B21: Marcos Perez P. | C21: 26.4 | F21: 56.9 | I21: 73.2 | K21: 92.2 | M21: 112.4 | O21: =O13+M21 -> 128.8 | Q21: =Q13+O21 -> 148 | S21: =SUM(S13:T13) -> 0 | U21: 0 | W21: 148 | X21: 4
B22: Daniel R. Gorjón | C22: 27.4 | F22: 55.7 | I22: 74.8 | K22: 93.5 | M22: 111 | O22: =O14+M22 -> 128 | Q22: =SUM(Q14:R14) -> 0 | S22: =SUM(S14:T14) -> 0 | U22: 0 | W22: 128 | X22: 5
B23: Daniel Mdez | C23: 26.9 | F23: 56.8 | I23: 73.9 | K23: 91.8 | M23: 110.9 | O23: =SUM(O15:P15) -> 0 | Q23: =SUM(Q15:R15) -> 0 | S23: =SUM(S15:T15) -> 0 | U23: 0 | W23: =W15 -> 110.9 | X23: 6
B24: Fco Javier Cuadra | C24: 26.1 | F24: 53.4 | I24: 72.8 | K24: 90.1 | M24: =SUM(M16:N16) -> 0 | O24: =SUM(O16:P16) -> 0 | Q24: =SUM(Q16:R16) -> 0 | S24: =SUM(S16:T16) -> 0 | U24: 0 | W24: 90.1 | X24: 7
B25: Sergio Gzlez Llague | C25: 26.9 | F25: 51.1 | I25: 69.4 | K25: =SUM(K17:L17) -> 0 | M25: =SUM(M17:N17) -> 0 | O25: =SUM(O17:P17) -> 0 | Q25: =SUM(Q17:R17) -> 0 | S25: =SUM(S17:T17) -> 0 | U25: 0 | W25: 69.4 | X25: 8
A26: PUESTO A CUMULADO | B26: =B18 -> Andres Martinez | C26: =_xlfn.RANK.EQ(C18,C$18:E$25) -> 1 | F26: =_xlfn.RANK.EQ(F18,F$18:H$25) -> 4 | I26: =_xlfn.RANK.EQ(I18,I$18:J$25) -> 3 | K26: =_xlfn.RANK.EQ(K18,K$18:L$25) -> 3 | M26: =IF(K18=0,K26,_xlfn.RANK.EQ(M18,M$18:N$25)) -> 2 | O26: =IF(M18=0,M26,_xlfn.RANK.EQ(O18,O$18:P$25)) -> 3 | Q26: =IF(O18=0,O26,_xlfn.RANK.EQ(Q18,Q$18:R$25)) -> 3 | S26: =IF(Q18=0,Q26,_xlfn.RANK.EQ(S18,S$18:T$25)) -> 1 | U26: =IF(S18=0,S26,_xlfn.RANK.EQ(U18,U$18:V$25)) -> 1 | W26: =W18 -> 190.5 | X26: 1
B27: J.Antonio Alvarez | C27: =_xlfn.RANK.EQ(C19,C$18:E$25) -> 3 | F27: =_xlfn.RANK.EQ(F19,F$18:H$25) -> 6 | I27: =_xlfn.RANK.EQ(I19,I$18:J$25) -> 5 | K27: 4 | M27: =IF(K19=0,K27,_xlfn.RANK.EQ(M19,M$18:N$25)) -> 3 | O27: 2 | Q27: 1 | S27: 1 | U27: 2 | W27: 187 | X27: 2
B28: Matín Castro M. | C28: 6 | F28: 5 | I28: 1 | K28: 1 | M28: 1 | O28: 1 | Q28: 1 | S28: 3 | U28: 3 | W28: 167.3 | X28: 3
B29: Marcos Perez P. | C29: 7 | F29: 1 | I29: 6 | K29: 5 | M29: 4 | O29: 4 | Q29: 4 | S29: 4 | U29: 4 | W29: 148 | X29: 4
B30: Daniel R. Gorjón | C30: 2 | F30: 3 | I30: 2 | K30: 2 | M30: 5 | O30: 5 | Q30: 5 | S30: 5 | U30: 5 | W30: 128 | X30: 5
B31: Daniel Mdez | C31: 4 | F31: 2 | I31: 4 | K31: 6 | M31: 6 | O31: 6 | Q31: 6 | S31: 6 | U31: 6 | W31: 110.9 | X31: 6
B32: Fco Javier Cuadra | C32: 8 | F32: 7 | I32: 7 | K32: 7 | M32: 7 | O32: 7 | Q32: 7 | S32: 7 | U32: 7 | W32: 90.1 | X32: 7
B33: Sergio Gzlez Llague | C33: 5 | F33: 8 | I33: 8 | K33: 8 | M33: 8 | O33: 8 | Q33: 8 | S33: 8 | U33: 8 | W33: 69.4 | X33: 8
